bitfinex/quotes_ETHUSD_20241204
["timestamp","ask_amount","ask_price","bid_price","bid_amount"]
[1733280709624,0.0272,3654.2,3653.9,2.73679]
[1733280709980,0.0272,3654.2,3653.2,0.8321]
[1733280710182,0.0272,3654.2,3653.5,2.73706]
[1733280710490,0.8277,3654.1,3653.4,2.73716]
[1733280712003,0.8277,3654.1,3653.5,2.73709]
[1733280712203,0.8277,3654.1,3653.1,0.02736792]
[1733280712400,0.8277,3654.1,3653.8,2.73683]
[1733280712602,0.8277,3654.1,3653.3,0.7914]
[1733280713124,0.8277,3654.1,3653.6,2.73698]
[1733280713337,0.8277,3654.1,3652.9,1.45870964]
[1733280713489,0.8277,3654.1,3652.9,4.45870964]
[1733280713691,0.8277,3654.1,3653.0,2.73747]
[1733280713932,0.8277,3654.1,3652.9,2.51710819]
[1733280713933,0.8277,3654.1,3653.3,2.73724]
[1733280714291,0.8277,3654.1,3652.9,1.45870964]
[1733280714697,0.8277,3654.1,3653.3,2.73724]
[1733280715427,0.8277,3654.1,3652.9,0.38027886]
[1733280715629,0.8277,3654.1,3653.1,0.8229]
[1733280715835,0.8277,3654.1,3653.8,2.73687]
[1733280716129,0.8277,3654.1,3653.2,0.02736778]
[1733280716130,0.8277,3654.1,3653.9,2.73678]
[1733280717331,0.8277,3654.1,3654.0,2.73672]
[1733280718026,0.8277,3654.1,3653.8,2.7368]
[1733280718222,0.8277,3654.1,3653.1,1.17838019]
[1733280718529,0.8277,3654.1,3653.3,2.73721]
[1733280718742,0.91328097,3654.1,3653.3,2.73721]
[1733280718930,0.91328097,3654.1,3653.1,0.35548019]
[1733280718931,0.8261,3654.0,3653.0,2.7374]
[1733280719098,0.93888097,3654.0,3653.1,2.73738]
[1733280719296,0.8001,3653.8,3653.1,2.73738]
[1733280719625,1.13881472,3653.8,3653.1,2.73738]
[1733280719819,0.8001,3653.8,3653.2,2.73732]
[1733280720047,0.8001,3653.8,3652.8,0.35699964]
[1733280720048,1.16601472,3653.8,3652.8,0.35699964]
[1733280720215,0.08558097,3653.7,3653.1,2.73738]
[1733280720414,0.08558097,3653.7,3652.7,0.2741]
[1733280720415,0.8001,3653.6,3652.8,2.73758]
[1733280720754,0.8001,3653.6,3652.6,0.2741]
[1733280720912,0.8001,3653.6,3653.0,2.73746]
[1733280721249,0.8001,3653.6,3653.2,2.73731]
[1733280721813,0.8001,3653.6,3652.7,2.7377]
[1733280721814,0.8001,3653.6,3653.0,2.73747]
[1733280722038,1.05374224,3653.6,3652.5,0.8143]
[1733280722212,0.8001,3653.6,3652.5,1.17513446]
[1733280722412,0.8001,3653.6,3652.6,0.02737216]
[1733280722663,0.0272,3653.7,3653.2,2.73727]
[1733280722854,0.0272,3653.7,3653.1,0.8258]
[1733280722855,0.0272,3653.7,3653.6,2.73702]
[1733280723861,0.0272,3653.7,3653.1,2.73734]
[1733280724155,0.0272,3653.7,3653.5,2.73705]
[1733280724520,0.0272,3653.7,3653.6,2.73702]
[1733280725667,0.0272,3653.7,3653.1,3.10526635]
[1733280725668,0.0272,3653.7,3653.5,2.73708]
[1733280726825,0.815,3653.6,3653.2,2.73732]
[1733280727368,0.25435403,3653.5,3653.2,2.73732]
[1733280727540,0.815,3653.6,3652.9,0.02737083]
[1733280727736,0.815,3653.6,3653.5,2.7371]
[1733280729755,0.8026,3654.6,3653.7,2.73688]
[1733280730061,0.8026,3654.4,3653.1,0.7716]
[1733280730275,0.25458506,3654.3,3653.1,0.7716]
[1733280730447,1.05718506,3654.2,3653.7,2.73692]
[1733280730637,0.25458506,3654.1,3653.8,2.73687]
[1733280730831,0.25458506,3654.0,3653.8,2.73687]
[1733280731032,0.25458506,3653.9,3653.8,2.73687]
[1733280731733,0.25458506,3653.9,3653.6,2.73702]
[1733280732068,0.8026,3654.2,3653.6,2.73698]
[1733280732069,0.25458506,3653.8,3653.6,2.73698]
[1733280732427,0.0272,3653.9,3653.1,0.7716]
[1733280732632,0.7531,3653.8,3653.5,2.73707]
[1733280733065,0.7531,3653.8,3653.5,2.73706]
[1733280733271,0.7531,3653.8,3653.0,2.73741]
[1733280733455,0.7531,3653.8,3652.8,1.16514745]
[1733280733654,0.2546507,3653.7,3652.8,0.36734745]
[1733280733825,0.0272,3653.7,3653.6,2.73702]
[1733280734029,0.28184893,3653.7,3653.0,2.73741]
[1733280734338,0.0272,3653.7,3653.0,2.73741]
[1733280734539,0.0272,3653.7,3653.4,2.7371]
[1733280734732,0.0272,3653.7,3653.0,2.73741]
[1733280734941,0.0272,3653.7,3653.5,2.73707]
[1733280735656,0.0272,3653.7,3653.1,2.7374]
[1733280736052,1.06992901,3653.6,3652.6,2.73772]
[1733280736263,0.25462901,3653.5,3652.7,0.02737144]
[1733280736477,0.0272,3653.5,3653.4,2.73717]
[1733280736980,0.0272,3653.5,3653.1,2.73734]
[1733280737159,0.0272,3653.5,3653.2,2.7373]
[1733280738293,0.0272,3653.5,3652.8,2.73758]
[1733280738448,0.7792,3653.4,3652.9,2.73754]
[1733280738954,0.7792,3653.4,3653.0,2.73746]
[1733280739155,0.7792,3653.4,3653.0,1.850957]
[1733280739356,0.7792,3653.4,3652.5,2.73785]
[1733280739790,0.7792,3653.4,3652.5,2.7378]
[1733280739948,0.7792,3653.4,3653.0,2.73743]
[1733280741294,0.7792,3653.4,3652.7,2.7377]
[1733280741495,0.7792,3653.4,3653.3,2.73725]
[1733280741656,0.0272,3653.5,3652.7,0.02737226]
[1733280741858,0.0272,3653.5,3653.4,2.73717]
[1733280743898,0.8205,3653.5,3652.8,3.01167]
[1733280744062,0.8205,3653.5,3653.3,2.73724]
[1733280744453,0.8205,3653.5,3653.0,2.73746]
[1733280744658,0.7058,3653.5,3653.0,2.73746]
[1733280745597,0.7058,3653.5,3652.5,3.01191]
[1733280745801,0.7058,3653.5,3652.6,2.73777]
[1733280746340,0.733,3653.5,3653.0,2.73744]
[1733280747273,0.733,3653.5,3652.4,0.8075]
[1733280747460,0.733,3653.5,3652.8,2.73759]
[1733280750679,0.733,3653.5,3652.0,3.50047]
[1733280750876,0.733,3653.5,3652.5,2.73779]
[1733280751281,0.733,3653.5,3652.6,2.73777]
[1733280751979,0.733,3653.5,3652.0,1.12043302]
[1733280751980,0.733,3653.5,3652.2,3.0]
[1733280752216,0.733,3653.5,3652.5,2.73784]
[1733280752583,0.733,3653.5,3652.6,2.73775]
[1733280753198,0.733,3653.5,3652.4,2.73792]
[1733280754076,0.8194,3653.4,3652.2,2.73807]
[1733280754583,0.8194,3653.4,3652.3,2.73798]
[1733280754805,0.7608,3653.4,3652.3,2.73798]
[1733280756417,0.7608,3653.4,3651.8,6.09341371]
[1733280756418,0.7741,3653.3,3652.1,2.73813]
[1733280756607,0.7741,3653.3,3651.8,6.09341371]
[1733280756608,0.8013,3653.3,3652.2,2.73806]
[1733280757478,0.8013,3653.3,3651.8,6.09341371]
[1733280757692,0.8013,3653.3,3652.3,2.73799]
[1733280758434,0.8013,3653.3,3652.7,2.73767]
[1733280759483,0.8013,3653.3,3652.4,0.02737515]
[1733280759802,0.8013,3653.3,3652.6,2.73771]
[1733280760126,0.8013,3653.3,3652.7,2.73769]
[1733280760287,0.8013,3653.3,3652.8,2.73762]
[1733280760981,0.8013,3653.3,3651.9,3.7855]
[1733280761183,0.8013,3653.3,3652.5,2.73782]
[1733280761695,0.8013,3653.3,3652.6,2.73777]
[1733280763630,0.8013,3653.3,3652.4,2.73788]
[1733280764088,0.8013,3653.3,3651.9,0.7855]
[1733280764282,0.8013,3653.3,3651.9,2.76567758]
[1733280764481,0.8013,3653.3,3652.4,2.73791]
[1733280764713,0.8013,3653.3,3652.2,0.7744]
[1733280764887,0.8013,3653.3,3652.8,2.73762]
[1733280765212,0.8013,3653.3,3652.8,2.7376]
[1733280766484,0.8013,3653.3,3652.5,3.03926511]
[1733280766739,0.8013,3653.3,3652.6,3.04169651]
[1733280767026,0.8013,3653.3,3653.1,2.73739]
[1733280767912,0.8013,3653.3,3652.5,0.2741]
[1733280768291,0.8013,3653.3,3652.8,2.73757]
[1733280768515,0.8013,3653.3,3652.5,0.2741]
[1733280768693,0.8013,3653.3,3652.6,0.301205]
[1733280768904,0.8013,3653.3,3653.0,2.73747]
[1733280770589,0.8013,3653.3,3652.2,0.2741]
[1733280770829,0.8013,3653.3,3652.3,0.02737672]
[1733280771026,0.8013,3653.3,3652.7,2.73764]
[1733280771433,0.8013,3653.3,3652.5,2.73783]
[1733280771633,0.8013,3653.3,3652.6,2.73773]
[1733280772131,0.8013,3653.3,3652.7,0.02737643]
[1733280772311,0.8013,3653.3,3653.0,2.73746]
[1733280772493,0.8013,3653.3,3652.9,2.73753]
[1733280774526,0.8013,3653.3,3652.1,0.2741]
[1733280774737,0.8013,3653.3,3652.3,0.2741]
[1733280775031,0.8013,3653.3,3652.9,2.73755]
[1733280775623,0.8013,3653.3,3653.0,2.73747]
[1733280778437,0.8013,3653.3,3652.8,2.73762]
[1733280778619,0.8013,3653.3,3652.9,2.73755]
[1733280779195,0.8013,3653.3,3652.3,0.2741]
[1733280779397,0.8013,3653.3,3652.5,2.73781]
[1733280780631,0.7855,3653.1,3652.6,2.73776]
[1733280780839,0.7855,3653.1,3651.7,0.2741]
[1733280780840,0.7855,3652.8,3651.7,0.2741]
[1733280781041,0.8711109,3652.7,3651.9,2.7383]
[1733280781241,0.0856109,3652.6,3651.9,2.7383]
[1733280781443,0.8594109,3652.5,3651.9,2.7383]
[1733280781612,0.7738,3652.5,3651.7,0.2741]
[1733280781940,0.7738,3652.5,3652.1,2.7381]
[1733280782122,0.801,3652.5,3652.1,2.7381]
[1733280782843,0.801,3652.5,3651.7,2.73837]
[1733280783027,0.3399483,3652.4,3651.6,0.2741]
[1733280783341,0.7789,3652.2,3651.3,3.01284]
[1733280783642,0.8061,3652.2,3651.4,2.73867]
[1733280783940,0.7789,3652.0,3651.5,2.73859]
[1733280784141,0.7789,3652.0,3651.7,2.73844]
[1733280784326,0.8061,3652.0,3651.7,2.73844]
[1733280785150,0.0272,3652.0,3651.9,3.0124]
[1733280786740,0.0272,3652.0,3651.9,6.7741]
[1733280786938,0.0272,3652.0,3651.9,3.7741]
[1733280788612,0.0272,3652.0,3651.9,3.78071024]
[1733280788819,0.0272,3652.0,3651.9,4.22149809]
[1733280789010,0.767,3653.0,3651.9,1.48319809]
[1733280789359,0.767,3653.0,3652.9,2.73755]
[1733280789507,0.25442234,3653.0,3652.9,2.73755]
[1733280790709,0.25449254,3653.0,3652.5,3.50198]
[1733280790905,0.08560401,3653.1,3652.2,0.7756097]
[1733280791111,0.34008461,3653.0,3652.9,2.73755]
[1733280791370,0.08560401,3653.2,3653.1,2.7374]
[1733280791649,0.34008433,3653.2,3653.1,2.7374]
[1733280793151,0.3401566,3653.2,3653.1,2.7374]
[1733280793515,0.3673566,3653.2,3653.1,2.7374]
[1733280793713,0.3673566,3653.2,3652.6,2.73777]
[1733280793910,0.25455717,3653.1,3653.0,2.73747]
[1733280794245,0.25455055,3653.1,3652.7,0.273777]
[1733280794549,0.11279943,3653.2,3653.1,2.7374]
[1733280794724,0.36735433,3653.2,3653.1,2.7374]
[1733280796749,0.8033,3653.1,3652.2,0.0066097]
[1733280796921,0.34015433,3653.0,3652.2,0.0066097]
[1733280797123,0.8033,3652.8,3652.2,0.0066097]
[1733280797324,0.8033,3652.6,3652.2,0.0066097]
[1733280797560,0.34015433,3652.5,3652.2,0.0066097]
[1733280797731,0.2545549,3652.4,3652.2,0.0066097]
[1733280798062,0.8033,3652.6,3652.2,0.0066097]
[1733280798359,0.34026589,3652.5,3652.2,0.0066097]
[1733280798896,0.8033,3652.6,3652.2,2.7446097]
[1733280799411,0.8305,3652.6,3652.3,2.73798]
[1733280799859,0.8305,3652.6,3652.2,0.0066097]
[1733280800734,1.08516889,3652.6,3652.2,0.0066097]
[1733280800953,0.8305,3652.6,3652.2,2.7446797]
[1733280802530,0.8305,3652.6,3652.5,2.73785]
[1733280802531,0.0272,3652.6,3652.5,2.73785]
[1733280803272,0.0272,3652.6,3652.2,0.0066097]
[1733280803563,0.7961,3652.5,3652.2,0.0066097]
[1733280804334,0.8041,3652.3,3652.2,0.0066097]
[1733280804543,1.14443017,3652.3,3651.3,3.53168]
[1733280804869,1.14443017,3652.3,3650.7,3.0]
[1733280804870,0.8041,3652.1,3650.9,0.793]
[1733280805029,0.8041,3652.1,3651.0,2.73896]
[1733280805230,0.8047,3651.9,3651.0,2.73896]
[1733280805430,0.254714,3651.8,3651.0,2.73896]
[1733280805640,0.8047,3651.7,3651.0,2.73896]
[1733280805825,0.8047,3651.7,3650.6,0.36986407]
[1733280805826,0.8047,3651.7,3650.8,2.73911]
[1733280806053,1.086614,3651.7,3650.8,2.145885]
[1733280806256,1.086614,3651.7,3650.9,2.73904]
[1733280806453,0.8319,3651.7,3650.9,2.73904]
[1733280807354,0.8319,3651.7,3650.4,2.73942]
[1733280807555,0.8319,3651.7,3650.8,2.7391]
[1733280808147,0.8319,3651.7,3650.9,0.00661205]
[1733280808353,0.8294,3651.5,3650.9,0.00661205]
[1733280808548,3.5682,3651.3,3650.9,0.00661205]
[1733280808733,1.16945907,3651.2,3650.9,0.00661205]
[1733280809064,0.8294,3651.1,3650.9,0.00661205]
[1733280812218,0.7712,3651.4,3650.9,0.00661205]
[1733280812566,0.0272,3651.5,3650.9,0.00661205]
[1733280812567,0.0272,3651.5,3651.0,0.761]
[1733280812762,0.0272,3651.5,3651.4,2.73867]
[1733280816109,0.0272,3651.5,3651.1,2.73884]
[1733280816261,0.0272,3651.5,3651.2,2.73882]
[1733280816462,0.0272,3651.5,3651.1,2.73883]
[1733280816690,0.0272,3651.5,3650.7,2.73916]
[1733280816919,0.0272,3651.5,3651.0,2.73893]
[1733280817277,0.0272,3651.5,3650.7,2.73916]
[1733280817480,0.0272,3651.5,3651.0,2.7389]
[1733280817792,0.0272,3651.5,3650.9,0.02738697]
[1733280817965,0.0272,3651.5,3651.4,2.73867]
[1733280822439,0.0272,3651.5,3651.4,3.50087]
[1733280822992,0.0272,3651.5,3651.4,2.73867]
[1733280823239,0.0272,3651.5,3651.4,3.088757]
[1733280832401,0.0272,3651.5,3651.4,3.895457]
[1733280833815,0.0272,3651.5,3651.4,4.19673587]
[1733280836322,0.08561496,3652.6,3652.5,2.73785]
[1733280837326,0.8031,3653.0,3652.5,0.273785]
[1733280837535,0.8031,3653.0,3652.8,2.7376]
[1733280837536,0.08561496,3652.9,3652.8,2.7376]
[1733280837890,0.8031,3653.0,3652.9,2.73755]
[1733280841563,0.08560259,3653.7,3652.9,2.73755]
[1733280841564,0.90710259,3653.6,3653.2,2.7373]
[1733280841856,0.08560259,3653.5,3652.9,2.73749]
[1733280842020,0.90710259,3653.4,3652.9,2.73749]
[1733280842226,0.08560259,3653.3,3652.7,0.2739]
[1733280842421,0.08560259,3653.2,3652.9,2.73754]
[1733280842804,0.08560259,3653.3,3652.9,2.73754]
[1733280843006,0.11280259,3653.2,3653.0,2.73746]
[1733280843347,0.0272,3653.2,3653.0,2.73746]
[1733280843549,0.11280259,3653.2,3653.0,2.73746]
[1733280843727,0.0272,3653.2,3653.0,2.73746]
[1733280843909,0.11280259,3653.2,3653.0,2.73746]
[1733280844105,0.0272,3653.2,3653.0,2.73746]
[1733280850683,0.0272,3653.2,3652.4,2.73787]
[1733280850839,0.8177,3653.1,3652.6,2.73776]
[1733280851043,0.90330259,3653.1,3652.4,2.73792]
[1733280851441,0.90330259,3653.1,3652.5,2.73784]
[1733280852185,0.90330259,3653.1,3652.0,0.8302]
[1733280852393,0.90330259,3653.1,3652.3,2.73799]
[1733280852690,0.784,3652.9,3651.9,2.73823]
[1733280852895,0.89680259,3652.9,3651.9,2.73823]
[1733280853090,0.86960259,3652.8,3651.9,2.73823]
[1733280853592,0.8148,3652.6,3651.9,2.73823]
[1733280853890,0.90040259,3652.6,3651.9,2.73823]
[1733280854117,0.8148,3652.6,3651.9,2.73823]
[1733280854476,0.90040259,3652.6,3651.9,2.73823]
[1733280854790,0.8148,3652.6,3651.9,2.73823]
[1733280855294,0.08560259,3652.5,3651.9,2.73823]
[1733280856189,0.8148,3652.6,3651.9,2.73823]
[1733280856363,0.08562177,3652.5,3651.9,2.73823]
[1733280856559,0.8148,3652.6,3651.9,2.73823]
[1733280856790,0.8148,3652.6,3652.0,2.73821]
[1733280856989,0.842,3652.6,3651.5,0.797]
[1733280857194,0.842,3652.6,3652.1,2.73813]
[1733280857693,0.0856201,3652.5,3652.1,2.73813]
[1733280857896,0.0272,3652.6,3652.2,0.0273788]
[1733280858193,0.0272,3652.6,3652.5,3.52375]
[1733280859487,0.0272,3652.6,3652.5,3.55112217]
[1733280859987,0.0272,3652.6,3652.5,3.52375]
[1733280860193,0.0272,3652.6,3652.5,4.149932]
[1733280860608,0.0272,3652.6,3652.5,4.17730436]
[1733280860962,0.0272,3652.6,3652.5,4.149932]
[1733280861564,0.0272,3652.6,3652.5,4.17730165]
[1733280862370,0.0272,3652.6,3652.5,4.149932]
[1733280862706,0.0272,3652.6,3652.5,7.149932]
[1733280865282,0.0272,3652.6,3652.5,7.423832]
[1733280865972,0.0272,3652.6,3652.5,7.7944388]
[1733280878303,0.0272,3652.6,3652.5,6.3823568]
[1733280878902,0.0272,3652.6,3652.5,6.01175]
[1733280879057,0.0272,3652.6,3652.4,0.2739]
[1733280880252,0.0272,3652.6,3652.5,3.01175]
[1733280881661,0.0272,3652.6,3652.5,2.73785]
[1733280882209,0.0272,3652.6,3652.3,2.73799]
[1733280882367,0.0272,3652.6,3652.2,0.2739]
[1733280882570,0.0272,3652.6,3652.0,0.875059]
[1733280883058,0.0272,3652.6,3652.2,2.738]
[1733280883961,0.0272,3652.6,3651.9,3.36675142]
[1733280884185,0.0272,3652.6,3651.9,0.36675142]
[1733280884385,0.0272,3652.6,3652.0,2.73821]
[1733280884562,0.0272,3652.6,3652.1,0.2739]
[1733280884886,0.0272,3652.6,3652.2,3.01197]
[1733280885082,0.08561506,3652.5,3652.2,3.01197]
[1733280885396,0.0272,3652.6,3652.2,0.2739]
[1733280885617,0.08561456,3652.5,3652.2,0.2739]
[1733280885819,0.0272,3652.6,3652.0,2.73822]
[1733280885820,0.0272,3652.6,3652.1,0.2739]
[1733280885981,0.08561573,3652.5,3652.1,0.2739]
[1733280886182,0.0272,3652.6,3652.1,0.2739]
[1733280886423,0.0856157,3652.5,3652.1,0.2739]
[1733280886602,0.0272,3652.6,3652.1,0.2739]
[1733280886786,0.08561599,3652.5,3652.1,0.2739]
[1733280886983,0.08561599,3652.4,3652.1,0.2739]
[1733280887188,0.0272,3652.6,3652.1,0.2739]
[1733280887396,0.08561622,3652.5,3652.1,0.2739]
[1733280887590,0.0272,3652.6,3652.1,0.2739]
[1733280887801,0.08561572,3652.5,3652.1,0.2739]
[1733280888021,0.0272,3652.6,3652.1,0.2739]
[1733280888225,0.08561617,3652.4,3652.0,0.2739]
[1733280888430,0.8306,3652.2,3652.0,0.2739]
[1733280888602,0.08561617,3652.1,3651.5,0.2739]
[1733280888801,0.08561617,3652.0,3651.5,0.2739]
[1733280889108,0.08561617,3651.9,3651.5,0.2739]
[1733280889313,0.89033318,3651.8,3651.2,3.01269]
[1733280889495,0.8047,3651.8,3651.2,3.01269]
[1733280889694,0.08563608,3651.7,3651.2,3.01269]
[1733280890097,0.8319,3651.8,3651.2,3.01269]
[1733280890498,0.8319,3651.8,3651.3,3.01264]
[1733280893001,0.8319,3651.8,3651.3,0.2739]
[1733280893201,0.8319,3651.8,3651.1,0.2739]
[1733280893403,0.8319,3651.8,3651.2,1.0973]
[1733280893631,0.8319,3651.8,3651.5,2.73857]
[1733280894648,0.8319,3651.8,3651.3,2.73873]
[1733280895306,0.8319,3651.8,3651.4,0.2739]
[1733280897722,0.8319,3651.8,3651.2,0.2739]
[1733280898551,0.8319,3651.8,3650.8,0.2739]
[1733280899621,0.8319,3651.8,3651.0,0.2739]
[1733280900460,0.8319,3651.8,3651.1,2.73889]
[1733280901564,0.8319,3651.8,3651.2,2.73882]
[1733280902058,0.8319,3651.8,3651.0,0.2739]
[1733280902275,0.8267,3651.7,3651.0,0.2739]
[1733280903069,0.8539,3651.7,3650.6,3.0131]
[1733280903233,0.8267,3651.5,3650.4,2.74603296]
[1733280903568,0.91233782,3651.5,3650.4,2.74603296]
[1733280903730,0.92956587,3651.5,3650.4,2.74603296]
[1733280904162,0.95676587,3651.5,3650.4,3.01993296]
[1733280904862,0.95676587,3651.5,3650.4,0.00661296]
[1733280905073,0.87112805,3651.5,3650.5,2.73934]
[1733280905431,0.87112805,3651.5,3650.6,0.2739]
[1733280905980,0.87112805,3651.5,3650.9,2.73901]
[1733280907132,0.87112805,3651.5,3651.2,2.73876]
[1733280907527,0.87112805,3651.5,3650.5,0.2739]
[1733280907729,0.87112805,3651.5,3650.9,2.73901]
[1733280908137,0.87112805,3651.5,3650.6,2.73927]
[1733280908477,0.87112805,3651.5,3650.6,0.7512]
[1733280908683,0.87112805,3651.5,3651.4,2.73867]
[1733280909346,0.04442805,3651.5,3651.4,2.73867]
[1733280909748,0.86812805,3651.5,3651.1,2.73888]
[1733280910352,0.86812805,3651.5,3651.2,2.73878]
[1733280910537,0.86812805,3651.5,3651.0,0.2739]
[1733280910734,0.86812805,3651.5,3651.1,0.02738636]
[1733280910939,0.04442805,3651.5,3651.4,2.73867]
[1733280912565,0.04442805,3651.5,3651.4,3.06594453]
[1733280913075,0.04442805,3651.5,3651.2,0.2739]
[1733280913289,0.79632805,3651.5,3651.2,0.2739]
[1733280914177,0.79632805,3651.5,3651.0,0.2739]
[1733280914746,0.79632805,3651.5,3651.2,3.01271]
[1733280915078,0.79632805,3651.5,3651.2,0.2739]
[1733280915786,0.08564212,3651.4,3651.1,0.2739]
[1733280915951,0.08564337,3651.3,3651.1,0.2739]
[1733280916153,0.79632805,3651.5,3651.1,0.2739]
[1733280916358,0.08564426,3651.4,3651.1,0.2739]
[1733280916566,0.08564426,3651.3,3651.1,0.2739]
[1733280916784,0.79632805,3651.5,3651.2,0.2739]
[1733280917086,0.08564402,3651.4,3651.2,2.7388]
[1733280917280,0.08564402,3651.3,3651.2,2.7388]
[1733280921048,0.08564402,3651.3,3650.7,3.01304]
[1733280921380,0.08564402,3651.2,3650.9,0.2739]
[1733280921581,0.08564402,3651.1,3650.9,0.2739]
[1733280921880,0.01722805,3651.5,3650.9,0.2739]
[1733280921881,0.84784402,3651.0,3650.9,0.2739]
[1733280922194,0.84784402,3651.0,3650.7,0.2739]
[1733280922345,0.08565049,3650.9,3650.7,0.2739]
[1733280922681,0.7622,3651.0,3650.7,0.2739]
[1733280922869,0.11284945,3650.9,3650.7,0.2739]
[1733280923083,0.0272,3650.9,3650.7,0.2739]
[1733280923900,0.08565252,3650.8,3650.5,0.2739]
[1733280924106,0.0272,3650.9,3650.5,0.2739]
[1733280924260,0.08565354,3650.8,3650.5,0.2739]
[1733280924603,0.0272,3650.9,3650.5,0.2739]
[1733280924897,0.0272,3650.9,3650.8,2.73912]
[1733280925100,0.11284883,3650.9,3650.8,3.5988093]
[1733280925406,0.0272,3650.9,3650.8,3.8727093]
[1733280925558,0.0272,3650.9,3650.8,4.54803102]
[1733280926707,0.0272,3650.9,3650.8,7.54803102]
[1733280926868,0.0272,3650.9,3650.8,7.52064497]
[1733280928509,0.0272,3650.9,3650.8,0.2739]
[1733280929705,0.0272,3650.9,3650.6,2.73927]
[1733280929706,0.0272,3650.9,3650.7,0.2739]
[1733280931093,0.0272,3650.9,3650.4,0.00661296]
[1733280931435,0.0272,3650.9,3650.8,3.01302]
[1733280931575,0.01722805,3651.5,3650.8,3.8145]
[1733280931775,0.01722805,3651.5,3651.4,2.73867]
[1733280932004,0.01722805,3651.5,3651.4,3.03995141]
[1733280933107,0.01722805,3651.5,3651.4,3.01257]
[1733280933989,0.01722805,3651.5,3651.4,6.01257]
[1733280935678,0.01722805,3651.5,3651.4,6.37967528]
[1733280935916,0.01722805,3651.5,3651.4,7.37168281]
[1733280937088,0.01722805,3651.5,3650.8,2.7391]
[1733280937089,0.01722805,3651.5,3650.8,2.73907]
[1733280937308,0.01722805,3651.5,3650.9,2.73905]
[1733280937583,0.01722805,3651.5,3651.3,2.73873]
[1733280938118,0.01722805,3651.5,3650.9,2.73905]
[1733280938288,0.01722805,3651.5,3651.4,2.73867]
[1733280942042,0.01722805,3651.5,3651.4,3.0987443]
[1733280942595,0.01722805,3651.5,3651.4,2.73867]
[1733280943007,0.81962805,3651.5,3651.4,2.73867]
[1733280944987,0.81962805,3651.5,3651.4,3.01257]
[1733280947225,0.81962805,3651.5,3651.0,0.2739]
[1733280947521,0.81962805,3651.5,3651.3,0.2739]
[1733280947731,0.81962805,3651.5,3651.2,2.73882]
[1733280948203,0.81962805,3651.5,3651.0,3.01286]
[1733280949841,0.81962805,3651.5,3651.1,2.73889]
[1733280951427,0.90527115,3651.5,3651.1,2.73889]
[1733280951601,0.81962805,3651.5,3651.1,2.73889]
[1733280952304,0.81962805,3651.5,3650.5,0.35910903]
[1733280952305,0.81962805,3651.5,3650.9,0.2739]
[1733280952519,0.81962805,3651.5,3650.9,3.01293]
[1733280953226,0.08564469,3651.4,3650.9,0.2739]
[1733280953524,0.82,3651.3,3650.8,3.01302]
[1733280953901,0.0272,3650.9,3650.8,3.01302]
[1733280955300,0.0272,3650.9,3650.8,3.588252]
[1733280963002,0.843,3650.9,3650.7,0.2739]
[1733280963203,0.843,3650.9,3650.8,2.73912]
[1733280965304,0.92865502,3650.9,3650.4,0.00661296]
[1733280965499,0.08565502,3650.8,3650.4,0.00661296]
[1733280965700,0.83885502,3650.7,3650.4,0.00661296]
[1733280965903,0.08565502,3650.6,3650.4,0.00661296]
[1733280966146,0.7532,3650.7,3650.4,0.00661296]
[1733280966356,0.7532,3650.7,3650.6,2.73927]
[1733280967605,0.7789,3650.9,3650.4,0.00661296]
[1733280967800,0.7789,3650.9,3650.7,2.73914]
[1733280968053,0.0272,3650.9,3650.8,2.73912]
[1733280968257,0.0272,3650.9,3650.8,3.286966]
[1733280968862,0.0272,3650.9,3650.8,4.09115094]
[1733280969168,0.0272,3650.9,3650.8,4.337666]
[1733280979862,0.0272,3650.9,3650.8,3.560866]
[1733280980058,0.8445,3650.9,3650.8,2.73912]
[1733280980445,0.0272,3650.9,3650.8,2.73912]
[1733280983217,0.7864,3650.8,3650.6,2.73926]
[1733280984040,0.7864,3650.8,3650.4,2.74603296]
[1733280984585,0.7864,3650.8,3650.5,2.73935]
[1733280985090,0.7864,3650.8,3650.6,2.73923]
[1733280989180,0.7864,3650.8,3650.7,2.7392]
[1733280990592,0.0272,3650.9,3650.4,3.01988296]
[1733280990593,0.0272,3650.9,3650.8,2.73912]
[1733280994261,0.0272,3650.9,3650.8,3.314352]
[1733280995163,0.0272,3650.9,3650.8,3.01302]
[1733280997013,0.0272,3650.9,3650.8,2.73912]
[1733280999682,0.0272,3650.9,3650.8,3.01302]
[1733281002022,0.7864,3650.9,3650.8,3.01302]
[1733281002550,0.7864,3650.9,3650.7,2.73919]
[1733281003722,0.7864,3650.9,3650.5,2.77130539]
[1733281004656,0.7864,3650.9,3650.6,2.73925]
[1733281004855,0.7864,3650.9,3650.5,2.77129539]
[1733281005056,0.7864,3650.9,3650.6,2.73927]
[1733281006454,0.7864,3650.9,3650.7,2.73919]
[1733281007025,0.7864,3650.9,3650.5,2.77129539]
[1733281012091,0.7864,3650.9,3650.5,0.03195539]
[1733281013286,0.9234583,3650.9,3650.5,0.03195539]
[1733281013487,0.7864,3650.9,3650.5,0.03195539]
[1733281013868,0.9234583,3650.9,3650.5,0.03195539]
[1733281014069,0.7864,3650.9,3650.5,0.03195539]
[1733281014268,0.7891,3650.8,3650.5,0.03195539]
[1733281014604,0.9261583,3650.8,3650.5,0.03195539]
[1733281015379,0.7891,3650.8,3650.5,0.03195539]
[1733281016211,0.0272,3650.9,3650.7,2.73912]
[1733281016393,0.0272,3650.9,3650.5,0.03195539]
[1733281017515,0.0272,3650.9,3650.6,2.73926]
[1733281018014,0.0272,3650.9,3650.5,0.03195539]
[1733281018390,0.0272,3650.9,3650.5,2.77129539]
[1733281018718,0.0272,3650.9,3650.5,0.03195539]
[1733281018902,0.0272,3650.9,3650.6,2.73926]
[1733281019819,0.0272,3650.9,3650.7,2.73917]